fUST/lending_fUST_20260630
["ID","MTS","AMOUNT","RATE_DAILY","PERIOD"]
[426708179,1782753049000,-1054.78,0.00029315,7]
[426708188,1782753049000,-1054.78,0.00029315,7]
[426708181,1782753049000,-1054.78,0.00029315,7]
[426708183,1782753049000,-1054.78,0.00029315,7]
[426708190,1782753049000,-1054.78,0.00029315,7]
[426708185,1782753049000,-1054.78,0.00029315,7]
[426708207,1782753049000,-500.0,0.00029315,7]
[426708186,1782753049000,-500.0,0.00029315,7]
[426708187,1782753049000,-500.0,0.00029315,7]
[426708184,1782753049000,-500.0,0.00029315,7]
[426708189,1782753049000,-500.0,0.00029315,7]
[426708192,1782753049000,-1054.78,0.00029315,7]
[426708191,1782753049000,-473.42,0.00029315,7]
[426708182,1782753049000,-500.0,0.00029315,7]
[426708204,1782753049000,-500.0,0.00029315,7]
[426708194,1782753049000,-525.60584538,0.00029315,7]
[426708210,1782753049000,-500.0,0.00029315,7]
[426708205,1782753049000,-500.0,0.00029315,7]
[426708198,1782753049000,-500.0,0.00029315,7]
[426708202,1782753049000,-500.0,0.00029315,7]
[426708200,1782753049000,-500.0,0.00029315,7]
[426708201,1782753049000,-500.0,0.00029315,7]
[426708197,1782753049000,-1054.78,0.00029315,7]
[426708195,1782753049000,-513.11823243,0.00029315,7]
[426708196,1782753049000,-500.0,0.00029315,7]
[426708193,1782753049000,-1054.78,0.00029315,7]
[426708203,1782753049000,-500.0,0.00029315,7]
[426708199,1782753049000,-500.0,0.00029315,7]
[426708277,1782753050000,-500.0,0.00029315,7]
[426708280,1782753050000,-570.5,0.00029315,7]
[426708278,1782753050000,-570.5,0.00029315,7]
[426708289,1782753050000,-1484.57,0.00029345,2]
[426708288,1782753050000,-1484.57,0.00029345,2]
[426708265,1782753050000,-570.5,0.00029315,7]
[426708273,1782753050000,-570.5,0.00029315,7]
[426708269,1782753050000,-570.5,0.00029315,7]
[426708274,1782753050000,-570.5,0.00029315,7]
[426708272,1782753050000,-570.5,0.00029315,7]
[426708275,1782753050000,-570.5,0.00029315,7]
[426708276,1782753050000,-570.5,0.00029315,7]
[426708286,1782753050000,-1484.57,0.00029345,2]
[426708290,1782753050000,-1484.57,0.00029345,2]
[426708282,1782753050000,-500.0,0.00029315,7]
[426708284,1782753050000,-500.0,0.00029315,7]
[426708279,1782753050000,-500.0,0.00029315,7]
[426708283,1782753050000,-570.5,0.00029315,7]
[426708285,1782753050000,-1484.57,0.00029345,2]
[426708287,1782753050000,-1484.57,0.00029345,2]
[426708299,1782753050000,-648.15083455,0.00029382,2]
[426708297,1782753050000,-783.06,0.00029355,7]
[426708294,1782753050000,-960.34,0.00029355,7]
[426708295,1782753050000,-1015.29,0.00029355,7]
[426708301,1782753050000,-185.29182717,0.00029382,2]
[426708296,1782753050000,-603.63,0.00029355,7]
[426708266,1782753050000,-500.0,0.00029315,7]
[426708281,1782753050000,-506.25799828,0.00029315,7]
[426708270,1782753050000,-570.5,0.00029315,7]
[426708263,1782753050000,-570.5,0.00029315,7]
[426708268,1782753050000,-500.0,0.00029315,7]
[426708291,1782753050000,-1484.57,0.00029345,2]
[426708239,1782753050000,-500.0,0.00029315,7]
[426708241,1782753050000,-500.0,0.00029315,7]
[426708249,1782753050000,-500.0,0.00029315,7]
[426708242,1782753050000,-476.79188571,0.00029315,7]
[426708246,1782753050000,-500.0,0.00029315,7]
[426708250,1782753050000,-527.90410127,0.00029315,7]
[426708247,1782753050000,-500.0,0.00029315,7]
[426708240,1782753050000,-412.0757487,0.00029315,7]
[426708243,1782753050000,-500.0,0.00029315,7]
[426708245,1782753050000,-500.0,0.00029315,7]
[426708248,1782753050000,-500.0,0.00029315,7]
[426708244,1782753050000,-500.0,0.00029315,7]
[426708262,1782753050000,-500.0,0.00029315,7]
[426708252,1782753050000,-523.49157966,0.00029315,7]
[426708254,1782753050000,-570.5,0.00029315,7]
[426708251,1782753050000,-500.0,0.00029315,7]
[426708253,1782753050000,-500.0,0.00029315,7]
[426708261,1782753050000,-500.0,0.00029315,7]
[426708257,1782753050000,-570.5,0.00029315,7]
[426708256,1782753050000,-500.0,0.00029315,7]
[426708259,1782753050000,-570.5,0.00029315,7]
[426708255,1782753050000,-500.0,0.00029315,7]
[426708258,1782753050000,-500.0,0.00029315,7]
[426708260,1782753050000,-508.66106907,0.00029315,7]
[426708264,1782753050000,-500.0,0.00029315,7]
[426708267,1782753050000,-570.5,0.00029315,7]
[426708271,1782753050000,-570.5,0.00029315,7]
[426708292,1782753050000,-2969.14,0.00029345,2]
[426708338,1782753050000,-1054.78,0.00029409,7]
[426708300,1782753050000,-209.93932648,0.00029382,2]
[426708334,1782753050000,-500.0,0.00029409,7]
[426708336,1782753050000,-500.0,0.00029409,7]
[426708333,1782753050000,-500.0,0.00029409,7]
[426708331,1782753050000,-500.0,0.00029409,7]
[426708337,1782753050000,-500.0,0.00029409,7]
[426708335,1782753050000,-500.0,0.00029409,7]
[426708332,1782753050000,-547.85,0.00029409,7]
[426708339,1782753050000,-500.0,0.00029409,7]
[426708341,1782753050000,-180.82,0.00029413,2]
[426708342,1782753050000,-960.34,0.00029419,7]
[426708350,1782753050000,-3000.0,0.0002944,2]
[426708346,1782753050000,-3000.0,0.0002942,2]
[426708344,1782753050000,-603.63,0.00029419,7]
[426708343,1782753050000,-1015.29,0.00029419,7]
[426708347,1782753050000,-1904.53328764,0.0002943,2]
[426708352,1782753050000,-173.18,0.00029446,2]
[426708340,1782753050000,-3000.0,0.0002941,2]
[426708345,1782753050000,-783.06,0.00029419,7]
[426708351,1782753050000,-225.93,0.00029446,15]
[426708348,1782753050000,-2000.0,0.0002943,2]
[426708353,1782753050000,-279.83,0.00029448,7]
[426708354,1782753050000,-500.0,0.00029448,7]
[426708356,1782753050000,-500.0,0.00029448,7]
[426708355,1782753050000,-500.0,0.00029448,7]
[426708357,1782753050000,-500.0,0.00029448,7]
[426708359,1782753050000,-500.0,0.00029448,7]
[426708298,1782753050000,-1000.0,0.00029382,2]
[426708330,1782753050000,-8775.05,0.00029409,7]
[426708328,1782753050000,-500.0,0.00029409,7]
[426708349,1782753050000,-3000.0,0.0002943,2]
[426708358,1782753050000,-535.92,0.00029448,7]
[426708329,1782753050000,-500.0,0.00029409,7]
[426708293,1782753050000,-314.293984,0.00029345,10]
[426708303,1782753050000,-1012.73567899,0.00029382,2]
[426708313,1782753050000,-151.0,0.000294,2]
[426708314,1782753050000,-151.0,0.000294,2]
[426708302,1782753050000,-1000.0,0.00029382,2]
[426708308,1782753050000,-151.0,0.000294,2]
[426708311,1782753050000,-151.0,0.000294,2]
[426708306,1782753050000,-3000.0,0.000294,2]
[426708310,1782753050000,-151.0,0.000294,2]
[426708304,1782753050000,-1000.0,0.00029382,2]
[426708305,1782753050000,-555.51,0.00029382,7]
[426708307,1782753050000,-151.0,0.000294,2]
[426708309,1782753050000,-151.0,0.000294,2]
[426708312,1782753050000,-161.1102053,0.000294,2]
[426708327,1782753050000,-555.51,0.00029409,7]
[426708315,1782753050000,-151.0,0.000294,2]
[426708319,1782753050000,-500.0,0.00029409,7]
[426708324,1782753050000,-535.92,0.00029409,7]
[426708321,1782753050000,-500.0,0.00029409,7]
[426708323,1782753050000,-500.0,0.00029409,7]
[426708320,1782753050000,-322.83,0.00029409,7]
[426708326,1782753050000,-329.37,0.00029409,7]
[426708317,1782753050000,-500.0,0.00029409,7]
[426708322,1782753050000,-500.0,0.00029409,7]
[426708316,1782753050000,-151.0,0.000294,2]
[426708318,1782753050000,-500.0,0.00029409,7]
[426708325,1782753050000,-500.0,0.00029409,7]
[426708410,1782753051000,-3000.0,0.0002949,2]
[426708400,1782753051000,-500.0,0.00029489,7]
[426708404,1782753051000,-500.0,0.00029489,7]
[426708403,1782753051000,-299.28,0.00029489,7]
[426708402,1782753051000,-500.0,0.00029489,7]
[426708393,1782753051000,-3000.0,0.0002946,2]
[426708392,1782753051000,-3000.0,0.0002945,2]
[426708396,1782753051000,-3000.0,0.0002948,2]
[426708395,1782753051000,-3000.0,0.0002947,2]
[426708391,1782753051000,-1000.0,0.0002945,2]
[426708390,1782753051000,-555.51,0.00029449,7]
[426708405,1782753051000,-8775.05,0.00029489,7]
[426708397,1782753051000,-500.0,0.00029489,7]
[426708407,1782753051000,-500.0,0.00029489,7]
[426708423,1782753051000,-151.0,0.000295,2]
[426708409,1782753051000,-1054.78,0.00029489,7]
[426708401,1782753051000,-535.92,0.00029489,7]
[426708411,1782753051000,-225.93,0.00029496,15]
[426708408,1782753051000,-500.0,0.00029489,7]
[426708412,1782753051000,-156.71,0.00029498,15]
[426708414,1782753051000,-151.0,0.000295,2]
[426708413,1782753051000,-151.0,0.000295,2]
[426708425,1782753051000,-151.0,0.000295,2]
[426708424,1782753051000,-151.0,0.000295,2]
[426708417,1782753051000,-151.0,0.000295,2]
[426708415,1782753051000,-151.0,0.000295,2]
[426708416,1782753051000,-151.0,0.000295,2]
[426708394,1782753051000,-555.51,0.00029468,7]
[426708406,1782753051000,-547.85,0.00029489,7]
[426708389,1782753051000,-156.71,0.00029448,15]
[426708361,1782753051000,-960.34,0.00029448,7]
[426708387,1782753051000,-1054.78,0.00029448,7]
[426708360,1782753051000,-960.34,0.00029448,7]
[426708418,1782753051000,-151.0,0.000295,2]
[426708363,1782753051000,-960.34,0.00029448,7]
[426708373,1782753051000,-603.63,0.00029448,7]
[426708367,1782753051000,-1015.29,0.00029448,7]
[426708365,1782753051000,-960.37,0.00029448,7]
[426708366,1782753051000,-500.0,0.00029448,7]
[426708372,1782753051000,-8775.05,0.00029448,7]
[426708364,1782753051000,-960.34,0.00029448,7]
[426708369,1782753051000,-1015.29,0.00029448,7]
[426708362,1782753051000,-500.0,0.00029448,7]
[426708368,1782753051000,-1015.29,0.00029448,7]
[426708370,1782753051000,-1015.29,0.00029448,7]
[426708371,1782753051000,-1015.33,0.00029448,7]
[426708374,1782753051000,-603.63,0.00029448,7]
[426708377,1782753051000,-603.78,0.00029448,7]
[426708378,1782753051000,-783.06,0.00029448,7]
[426708376,1782753051000,-603.63,0.00029448,7]
[426708375,1782753051000,-603.63,0.00029448,7]
[426708379,1782753051000,-783.06,0.00029448,7]
[426708381,1782753051000,-783.06,0.00029448,7]
[426708384,1782753051000,-500.0,0.00029448,7]
[426708386,1782753051000,-460.98,0.00029448,7]
[426708383,1782753051000,-547.85,0.00029448,7]
[426708382,1782753051000,-783.08,0.00029448,7]
[426708380,1782753051000,-783.06,0.00029448,7]
[426708385,1782753051000,-500.0,0.00029448,7]
[426708388,1782753051000,-295.9548001,0.00029448,7]
[426708398,1782753051000,-500.0,0.00029489,7]
[426708399,1782753051000,-500.0,0.00029489,7]
[426708419,1782753051000,-3000.0,0.000295,2]
[426708421,1782753051000,-151.0,0.000295,2]
[426708420,1782753051000,-151.0,0.000295,2]
[426708463,1782753051000,-500.0,0.00029559,7]
[426708459,1782753051000,-173.18,0.00029546,2]
[426708458,1782753051000,-225.93,0.00029546,15]
[426708455,1782753051000,-3000.0,0.0002953,2]
[426708453,1782753051000,-210.0,0.00029512,2]
[426708462,1782753051000,-500.0,0.00029559,7]
[426708461,1782753051000,-3000.0,0.0002955,2]
[426708476,1782753051000,-3000.0,0.0002958,2]
[426708466,1782753051000,-500.0,0.00029559,7]
[426708477,1782753051000,-1109.56096417,0.00029589,3]
[426708478,1782753051000,-500.0,0.00029589,7]
[426708467,1782753051000,-8775.05,0.00029559,7]
[426708472,1782753051000,-3000.0,0.0002956,2]
[426708469,1782753051000,-240.96,0.00029559,7]
[426708471,1782753051000,-1054.78,0.00029559,7]
[426708470,1782753051000,-387.52,0.00029559,7]
[426708465,1782753051000,-535.92,0.00029559,7]
[426708468,1782753051000,-547.85,0.00029559,7]
[426708473,1782753051000,-555.51,0.00029569,7]
[426708475,1782753051000,-960.53,0.0002957,2]
[426708474,1782753051000,-3000.0,0.0002957,2]
[426708479,1782753051000,-3234.789221,0.0002959,2]
[426708482,1782753051000,-156.71,0.00029598,15]
[426708480,1782753051000,-555.51,0.00029592,7]
[426708486,1782753051000,-151.0,0.000296,2]
[426708483,1782753051000,-151.0,0.000296,2]
[426708481,1782753051000,-225.93,0.00029596,15]
[426708485,1782753051000,-151.0,0.000296,2]
[426708487,1782753051000,-151.0,0.000296,2]
[426708457,1782753051000,-3000.0,0.0002954,2]
[426708460,1782753051000,-156.71,0.00029548,15]
[426708484,1782753051000,-151.0,0.000296,2]
[426708464,1782753051000,-500.0,0.00029559,7]
[426708456,1782753051000,-555.51,0.0002953,7]
[426708422,1782753051000,-151.0,0.000295,2]
[426708428,1782753051000,-320.0,0.00029509,2]
[426708429,1782753051000,-555.51,0.00029509,7]
[426708430,1782753051000,-370.0,0.0002951,2]
[426708438,1782753051000,-500.0,0.00029511,7]
[426708427,1782753051000,-151.0,0.000295,2]
[426708432,1782753051000,-500.0,0.0002951,2]
[426708435,1782753051000,-3000.0,0.0002951,2]
[426708434,1782753051000,-500.0,0.0002951,2]
[426708431,1782753051000,-750.0,0.0002951,2]
[426708433,1782753051000,-280.0,0.0002951,2]
[426708437,1782753051000,-500.0,0.00029511,7]
[426708436,1782753051000,-500.0,0.00029511,7]
[426708426,1782753051000,-151.0,0.000295,2]
[426708441,1782753051000,-500.0,0.00029511,7]
[426708450,1782753051000,-900.0,0.00029512,2]
[426708452,1782753051000,-430.0,0.00029512,2]
[426708447,1782753051000,-1054.78,0.00029511,7]
[426708448,1782753051000,-1000.0,0.00029512,2]
[426708446,1782753051000,-500.0,0.00029511,7]
[426708449,1782753051000,-1000.0,0.00029512,2]
[426708454,1782753051000,-3000.0,0.0002952,2]
[426708445,1782753051000,-500.0,0.00029511,7]
[426708439,1782753051000,-578.46,0.00029511,7]
[426708443,1782753051000,-8775.05,0.00029511,7]
[426708451,1782753051000,-650.0,0.00029512,2]
[426708440,1782753051000,-535.92,0.00029511,7]
[426708442,1782753051000,-548.16,0.00029511,7]
[426708444,1782753051000,-547.85,0.00029511,7]
[426708527,1782753052000,-500.0,0.00029847,7]
[426708534,1782753052000,-1054.78,0.00029847,7]
[426708528,1782753052000,-500.0,0.00029847,7]
[426708525,1782753052000,-224.9583,0.00029812,2]
[426708519,1782753052000,-327.7860684,0.000298,2]
[426708526,1782753052000,-173.18,0.00029846,2]
[426708520,1782753052000,-154.9926473,0.000298,2]
[426708524,1782753052000,-222.2146,0.00029807,2]
[426708529,1782753052000,-196.63,0.00029847,7]
[426708513,1782753052000,-151.0,0.000298,2]
[426708536,1782753052000,-500.0,0.00029863,7]
[426708522,1782753052000,-151.0,0.000298,2]
[426708540,1782753052000,-173.18,0.00029946,2]
[426708532,1782753052000,-8775.05,0.00029847,7]
[426708530,1782753052000,-535.92,0.00029847,7]
[426708533,1782753052000,-547.85,0.00029847,7]
[426708535,1782753052000,-156.71,0.00029848,15]
[426708539,1782753052000,-151.0,0.000299,2]
[426708537,1782753052000,-156.71,0.00029898,15]
[426708538,1782753052000,-555.51,0.00029899,7]
[426708542,1782753052000,-1236.318931,0.0002998,2]
[426708544,1782753052000,-2020.49768648,0.0002999,2]
[426708545,1782753052000,-2000.0,0.0002999,2]
[426708549,1782753052000,-2000.0,0.0002999,2]
[426708518,1782753052000,-327.7860684,0.000298,2]
[426708547,1782753052000,-2000.0,0.0002999,2]
[426708531,1782753052000,-500.0,0.00029847,7]
[426708517,1782753052000,-151.0,0.000298,2]
[426708511,1782753052000,-156.71,0.00029798,15]
[426708523,1782753052000,-178.4165,0.00029806,2]
[426708546,1782753052000,-2000.0,0.0002999,2]
[426708488,1782753052000,-151.0,0.000296,2]
[426708491,1782753052000,-151.0,0.000296,2]
[426708489,1782753052000,-151.0,0.000296,2]
[426708490,1782753052000,-151.0,0.000296,2]
[426708494,1782753052000,-156.71,0.00029648,15]
[426708499,1782753052000,-151.0,0.000297,2]
[426708493,1782753052000,-173.18,0.00029646,2]
[426708498,1782753052000,-156.71,0.00029698,15]
[426708492,1782753052000,-225.93,0.00029646,15]
[426708497,1782753052000,-225.93,0.00029696,15]
[426708495,1782753052000,-555.51,0.00029653,7]
[426708500,1782753052000,-151.0,0.000297,2]
[426708510,1782753052000,-555.51,0.00029783,7]
[426708503,1782753052000,-151.0,0.000297,2]
[426708502,1782753052000,-151.0,0.000297,2]
[426708505,1782753052000,-151.0,0.000297,2]
[426708501,1782753052000,-151.0,0.000297,2]
[426708509,1782753052000,-156.71,0.00029748,15]
[426708506,1782753052000,-555.51,0.00029715,7]
[426708504,1782753052000,-151.0,0.000297,2]
[426708508,1782753052000,-173.18,0.00029746,2]
[426708507,1782753052000,-226.05,0.00029746,15]
[426708512,1782753052000,-151.0,0.000298,2]
[426708514,1782753052000,-151.0,0.000298,2]
[426708515,1782753052000,-327.7860685,0.000298,2]
[426708516,1782753052000,-151.0,0.000298,2]
[426708521,1782753052000,-151.0,0.000298,2]
[426708548,1782753052000,-2000.0,0.0002999,2]
[426708496,1782753052000,-233.48667978,0.00029655,2]
[426708541,1782753052000,-156.71,0.00029948,15]
[426708586,1782753052000,-555.61,0.00029999,7]
[426708579,1782753052000,-614.8,0.00029999,7]
[426708587,1782753052000,-8775.05,0.00029999,7]
[426708580,1782753052000,-555.51,0.00029999,7]
[426708588,1782753052000,-8775.05,0.00029999,7]
[426708589,1782753052000,-8775.05,0.00029999,7]
[426708582,1782753052000,-555.51,0.00029999,7]
[426708583,1782753052000,-555.51,0.00029999,7]
[426708581,1782753052000,-555.51,0.00029999,7]
[426708590,1782753052000,-8775.05,0.00029999,7]
[426708592,1782753052000,-8775.05,0.00029999,7]
[426708591,1782753052000,-8775.05,0.00029999,7]
[426708602,1782753052000,-547.93,0.00029999,7]
[426708601,1782753052000,-547.85,0.00029999,7]
[426708600,1782753052000,-547.85,0.00029999,7]
[426708593,1782753052000,-8775.05,0.00029999,7]
[426708596,1782753052000,-547.85,0.00029999,7]
[426708598,1782753052000,-547.85,0.00029999,7]
[426708597,1782753052000,-547.85,0.00029999,7]
[426708594,1782753052000,-8775.19004811,0.00029999,7]
[426708595,1782753052000,-547.85,0.00029999,7]
[426708599,1782753052000,-547.85,0.00029999,7]
[426708608,1782753052000,-1054.78,0.00029999,7]
[426708604,1782753052000,-1054.78,0.00029999,7]
[426708603,1782753052000,-1054.78,0.00029999,7]
[426708606,1782753052000,-1054.78,0.00029999,7]
[426708607,1782753052000,-1054.78,0.00029999,7]
[426708578,1782753052000,-500.0,0.00029999,7]
[426708585,1782753052000,-555.51,0.00029999,7]
[426708605,1782753052000,-1054.78,0.00029999,7]
[426708584,1782753052000,-555.51,0.00029999,7]
[426708576,1782753052000,-500.0,0.00029999,7]
[426708560,1782753052000,-500.0,0.00029999,7]
[426708561,1782753052000,-500.0,0.00029999,7]
[426708550,1782753052000,-2000.0,0.0002999,2]
[426708562,1782753052000,-500.0,0.00029999,7]
[426708551,1782753052000,-2000.0,0.0002999,2]
[426708552,1782753052000,-500.0,0.00029998,7]
[426708558,1782753052000,-1054.78,0.00029998,7]
[426708555,1782753052000,-500.0,0.00029998,7]
[426708557,1782753052000,-547.85,0.00029998,7]
[426708559,1782753052000,-156.71,0.00029998,15]
[426708554,1782753052000,-535.92,0.00029998,7]
[426708553,1782753052000,-500.0,0.00029998,7]
[426708556,1782753052000,-8775.05,0.00029998,7]
[426708543,1782753052000,-555.51,0.00029989,7]
[426708565,1782753052000,-500.0,0.00029999,7]
[426708563,1782753052000,-500.0,0.00029999,7]
[426708571,1782753052000,-535.92,0.00029999,7]
[426708574,1782753052000,-536.01,0.00029999,7]
[426708577,1782753052000,-500.0,0.00029999,7]
[426708570,1782753052000,-535.92,0.00029999,7]
[426708572,1782753052000,-535.92,0.00029999,7]
[426708573,1782753052000,-535.92,0.00029999,7]
[426708575,1782753052000,-500.0,0.00029999,7]
[426708569,1782753052000,-535.92,0.00029999,7]
[426708567,1782753052000,-535.92,0.00029999,7]
[426708564,1782753052000,-496.67,0.00029999,7]
[426708566,1782753052000,-222.71,0.00029999,7]
[426708568,1782753052000,-535.92,0.00029999,7]
[426708622,1782753053000,-500.0,0.00029315,7]
[426708621,1782753053000,-500.0,0.00029315,7]
[426708618,1782753053000,-500.0,0.00029315,7]
[426708617,1782753053000,-334.3865502,0.00029315,7]
[426708620,1782753053000,-500.0,0.00029315,7]
[426708611,1782753053000,-1174.8462,0.0003,2]
[426708614,1782753053000,-500.0,0.00029315,7]
[426708615,1782753053000,-110.70994478,0.00029315,7]
[426708613,1782753053000,-2035.17694897,0.0003,2]
[426708612,1782753053000,-268786.14798589,0.0003,2]
[426708623,1782753053000,-500.0,0.00029315,7]
[426708609,1782753053000,-1054.78,0.00029999,7]
[426708610,1782753053000,-1054.99,0.00029999,7]
[426708616,1782753053000,-54.90350502,0.00029315,7]
[426708624,1782753053000,-500.0,0.00029315,7]
[426708619,1782753053000,-483.19,0.00029315,7]
[426708634,1782753053000,-570.5,0.00029448,7]
[426708631,1782753053000,-570.5,0.00029448,7]
[426708638,1782753053000,-71239.74913828,0.0003,2]
[426708640,1782753053000,-15152.89561114,0.0003,2]
[426708639,1782753053000,-123773.45870114,0.0003,2]
[426708637,1782753053000,-5000.0,0.00029022,2]
[426708630,1782753053000,-570.5,0.00029419,7]
[426708629,1782753053000,-500.0,0.00029409,7]
[426708632,1782753053000,-570.5,0.00029448,7]
[426708628,1782753053000,-570.5,0.00029355,7]
[426708625,1782753053000,-500.0,0.00029315,7]
[426708626,1782753053000,-500.0,0.00029315,7]
[426708635,1782753053000,-570.59,0.00029448,7]
[426708636,1782753053000,-5535.59049848,0.0003,2]
[426708627,1782753053000,-500.0,0.00029315,7]
[426708633,1782753053000,-570.5,0.00029448,7]
[426708651,1782753207000,500.0,0.00030136,30]
[426708653,1782753208000,500.0,0.00030136,30]
[426708652,1782753208000,500.0,0.00030136,30]
[426708655,1782753208000,500.0,0.00030136,30]
[426708654,1782753208000,500.0,0.00030136,30]
[426708659,1782753341000,-1625.89386831,0.00026234,2]
[426708965,1782754241000,-191.44332425,0.00026234,2]
[426708967,1782754241000,-1418.0,0.00029,2]
[426708968,1782754241000,-186.0,0.00029118,2]
[426708966,1782754241000,-151.7,0.00026234,2]
[426708975,1782754241000,-1378.71688619,0.00029118,2]
[426708979,1782754241000,-3802.19451987,0.00029215,2]
[426708978,1782754241000,-459.67131952,0.00029215,2]
[426708969,1782754241000,-837.28311381,0.00029118,2]
[426708977,1782754241000,-500.0,0.00029214,2]
[426709028,1782754242000,-2231.872,0.00029215,2]
[426709006,1782754242000,-1385.59573854,0.00029215,2]
[426708999,1782754242000,-498.40191775,0.00029215,2]
[426709282,1782754399000,204.534,0.0003,30]
[426709281,1782754399000,225.52,0.0003,120]
[426709283,1782754400000,24000.61372307,0.00029215,120]
[426709286,1782754415000,2502.92922332,0.00029347,120]
[426709300,1782754522000,160.0,0.00029347,30]
[426709359,1782755147000,234.0,0.0003,30]
[426709446,1782755432000,-500.0,0.00029214,2]
[426709443,1782755432000,-387.97492346,0.00029214,2]
[426709437,1782755432000,-155.0,0.00028,2]
[426709441,1782755432000,-161.0,0.00029,2]
[426709432,1782755432000,-292.92515876,0.00026908,2]
[426709439,1782755432000,-377.51289688,0.00028325,2]
[426709425,1782755432000,-153.05370468,0.00025557,2]
[426709431,1782755432000,-1982.97696889,0.00026902,2]
[426709428,1782755432000,-1458.33937774,0.00026902,2]
[426709435,1782755432000,-500.0,0.0002779,2]
[426709420,1782755432000,-314.91405989,0.00025109,14]
[426709422,1782755432000,-211.40440953,0.00025557,2]
[426709448,1782755432000,-14671.85403205,0.00029215,2]
[426709552,1782755438000,-367.83173127,0.00029273,2]
[426709547,1782755438000,-8579.33907242,0.00029215,2]
[426709557,1782755438000,-186.0,0.00029273,2]
[426709555,1782755438000,-1848.16826873,0.00029273,2]
[426709545,1782755438000,-871.71238038,0.00029215,2]
[426709550,1782755438000,-1843.0,0.00029273,2]
[426709548,1782755438000,-429.02656496,0.00029215,2]
[426709559,1782755438000,-152.37899892,0.00029273,2]
[426709829,1782755440000,-590.15838537,0.00029304,2]
[426709830,1782755440000,-590.15838537,0.00029304,2]
[426709824,1782755440000,-590.15838537,0.00029304,2]
[426709826,1782755440000,-590.15838537,0.00029304,2]
[426709814,1782755440000,-590.15838537,0.00029304,2]
[426709820,1782755440000,-590.15838537,0.00029304,2]
[426709810,1782755440000,-590.15838537,0.00029304,2]
[426709822,1782755440000,-590.15838537,0.00029304,2]
[426709818,1782755440000,-590.15838537,0.00029304,2]
[426709816,1782755440000,-590.15838537,0.00029304,2]
[426709806,1782755440000,-590.15838537,0.00029304,2]
[426709804,1782755440000,-67.31600108,0.00029273,2]
[426709808,1782755440000,-272.01491288,0.00029304,2]
[426709832,1782755440000,-590.15838537,0.00029304,2]
[426709812,1782755440000,-590.15838537,0.00029304,2]
[426709840,1782755440000,-590.15838537,0.00029304,2]
[426709834,1782755440000,-590.15838537,0.00029304,2]
[426709862,1782755440000,-500.0,0.00029314,2]
[426709858,1782755440000,-500.0,0.00029314,7]
[426709860,1782755440000,-500.0,0.00029314,2]
[426709854,1782755440000,-500.0,0.00029314,7]
[426709864,1782755440000,-489.55,0.00029314,2]
[426709853,1782755440000,-500.0,0.00029313,2]
[426709856,1782755440000,-500.0,0.00029314,7]
[426709847,1782755440000,-590.15838537,0.00029304,2]